Cogmind - Beta 16.1 *** ADVENTURER MODE // 2026.02.27 @ 00:27:50 Player: misiasty3 Result: Self-destructed Performance ------------- Evolutions (1) 500 Regions Visited (2) 400 Robots Destroyed (10) 50 Value Destroyed (118) 118 Prototype IDs (1) 20 Alien Tech Used (0) 0 Bonus (0) 0 TOTAL SCORE: 1088 Bonus ------- None Cogmind --------- Core Integrity 264/400 Matter 280/300 Energy 250/250 System Corruption 0% Temperature Cool (0) Movement Rolling (80) Location -9/Materials Parts ------- > --- POWER (1) -------- Ion Engine > --- PROPULSION (3) --- Wheel Wheel > --- UTILITY (3) ------ Small Storage Unit Improved Targeting Computer > --- WEAPON (2) ------- Light Assault Rifle Light Assault Rifle > --- INVENTORY (8) ---- Light Ion Engine Wheel Improved Targeting Computer Small Laser Beam Rifle Light Assault Rifle Peak State ------------ > --- POWER ------------ Ion Engine > --- PROPULSION ------- Wheel Wheel > --- UTILITY ---------- Small Storage Unit Improved Targeting Computer > --- WEAPON ----------- Small Laser Advanced Beam Cannon > --- INVENTORY -------- Light Ion Engine Wheel Improved Targeting Computer Light Assault Rifle Light Assault Rifle Light Assault Rifle [Rating: 10] Favorites ----------- Power Ion Engine Engine Ion Engine Propulsion Wheel Wheel Wheel Utility Small Storage Unit Storage Small Storage Unit Processor Improved Targeting Computer Weapon Light Assault Rifle Energy Gun Small Laser Energy Cannon Advanced Beam Cannon Ballistic Gun Light Assault Rifle Build | -11 -10 -9 ------- Run | Yrd Mat Mat Slots Evolved 2 | . . 2 Power . | . . . Propulsion 1 | . . 1 Utility 1 | . . 1 Weapon . | . . . Parts Attached 10 | 6 2 2 Power 1 | 1 . . Engine 1 | 1 . . Core . | . . . Reactor . | . . . Propulsion 3 | 2 . 1 Treads . | . . . Leg . | . . . Wheel 3 | 2 . 1 Hover . | . . . Flight . | . . . Utility 2 | 1 1 . Device . | . . . Storage 1 | 1 . . Processor 1 | . 1 . Hackware . | . . . Protection . | . . . Artifact . | . . . Weapon 4 | 2 1 1 Energy Gun 1 | 1 . . Energy Cannon 1 | . 1 . Ballistic Gun 2 | 1 . 1 Ballistic Cannon . | . . . Launcher . | . . . Special Weapon . | . . . Impact Weapon . | . . . Slashing Weapon . | . . . Piercing Weapon . | . . . Special Melee Weapon . | . . . Unidentified Prototypes 1 | . 1 . Parts Lost . | . . . Power . | . . . Propulsion . | . . . Utility . | . . . Weapon . | . . . Highest Loss Streak . | . . . To Critical Strikes . | . . . Average Backups 4 | 1 3 5 Power . | . 1 1 Propulsion . | . . 1 Utility . | . . 1 Weapon 1 | . 1 2 Tool/Special . | . . . Unused Backups 4 | . . 4 Power 1 | . . 1 Propulsion . | . . . Utility 1 | . . 1 Weapon 2 | . . 2 Tool/Special . | . . . Average Slot Usage (%) 82 | . 89 77 Engine 12 | . 14 11 Wheel 24 | . 28 22 Storage 12 | . 14 11 Processor 7 | . 3 11 Energy Gun 11 | . 14 9 Ballistic Gun 12 | . 14 12 Peak Build Rating 10 | 6 10 8 Average Rating 7 | 2 6 8 On Entrance 4 | . 6 8 Avg Prop Armor Cover (%) . | . . . Naked Turns . | . . . Heaviest Build 12 | 12 12 12 Greatest Support 20 | 20 20 20 Greatest Overweight (x) 1 | 1 . . Average Overweight (x) . | . . . Largest Inventory Capacity 8 | 8 8 8 Average Capacity 7 | 6 8 8 Most Carried 6 | 5 6 6 Average Carried 4 | 1 3 5 Final Capacity 8 | 8 8 8 Final Carried 6 | 1 5 6 Class Distribution -------------------- 100% | Mutant Dominant Class ---------------- Mutant | -10/Materials Mutant | -9/Materials Resources | -11 -10 -9 ----------- Run | Yrd Mat Mat Matter Collected 310 | 205 75 30 Remotely . | . . . Salvage Created 237 | . 100 137 Parts 24 | . 11 13 Haulers Intercepted . | . . . Recyclers Shooed . | . . . Parts Field Recycled . | . . . Retrieved Matter . | . . . Parts Self-Destructed . | . . . Prevented . | . . . Parts Restored . | . . . Kills | -11 -10 -9 ------- Run | Yrd Mat Mat Combat Hostiles Destroyed 7 | . 3 4 Guns 7 | . 3 4 Classes Destroyed 5 | . 3 2 Worker 1 | . 1 . Builder 1 | . 1 . Tunneler 1 | . . 1 Swarmer 6 | . 3 3 Sentry 1 | . . 1 Best Kill Streak 3 | . 3 3 Combat Bots Only 3 | . 3 3 Max Kills in Single Turn 2 | . 1 2 Gunslinging 1 | . . 1 Exploded . | . . . Melee . | . . . Uniques/NPCs Destroyed . | . . . Combat | -11 -10 -9 -------- Run | Yrd Mat Mat Hostile Shots Fired 55 | . 17 38 Missed 19 | . 6 13 Hits 36 | . 11 25 Projectile 36 | . 11 25 Damage Taken 379 | . 102 277 Core 182 | . 46 136 Absorbed by Shields . | . . . Ignored by Resistances 109 | . 33 76 Core Remaining (%) 90 | 100 81 . Volleys Fired 24 | . 13 11 Largest 2 | . 2 2 Hottest 60 | . 60 60 Shots Fired 42 | . 21 21 Gun 42 | . 21 21 Cannon . | . . . Launcher . | . . . Special . | . . . Kinetic 20 | . 10 10 Thermal 22 | . 11 11 Explosive . | . . . Electromagnetic . | . . . Robot Hit Streak 16 | . 3 16 Robot Miss Streak 2 | . 2 1 Penetration Max . | . . . Secondary Targets 2 | . . 2 Max Gunslinging Chain 1 | . . 1 Shots Hit Robots 29 | . 10 19 Core Hits 15 | . 6 9 Critical Kills . | . . . Critical Parts Destroyed . | . . . Critical Strikes . | . . . Melee Attacks . | . . . Impact . | . . . Slashing . | . . . Piercing . | . . . Sneak Attacks . | . . . Combat Hostiles . | . . . Follow-up Attacks . | . . . Damage Inflicted 276 | . 94 182 Guns 276 | . 94 182 Cannons . | . . . Explosions . | . . . Melee . | . . . Ramming . | . . . Kinetic 124 | . 51 73 Thermal 152 | . 43 109 Explosive . | . . . Electromagnetic . | . . . Impact . | . . . Slashing . | . . . Piercing . | . . . Highest Corruption . | . . . Average Corruption . | . . . Corruption Purged . | . . . Corruption Blocked . | . . . Overload Shots . | . . . Overflow Damage . | . . . Projectiles . | . . . Explosions . | . . . Melee . | . . . Knockbacks . | . . . Impact . | . . . Kinetic . | . . . Secondary . | . . . Self-Inflicted Damage . | . . . Shots . | . . . Rammed . | . . . Targets Rammed . | . . . Kicked . | . . . Crushed . | . . . Highest Temperature 60 | . 40 60 Average Temperature 23 | . 22 24 Received Heat Transfer 117 | . . 117 Siege Activations . | . . . Martial Activations . | . . . Shielding Activations . | . . . Robots Disrupted . | . . . Combat Hostiles . | . . . Robots Corrupted . | . . . Combat Hostiles . | . . . Parts Fried . | . . . Impact Corruptions . | . . . Robots Melted . | . . . Combat Hostiles . | . . . Parts Melted 1 | . . 1 Heat Transferred 350 | . 100 250 Parts Sabotaged . | . . . Parts Stolen . | . . . Parts Stripped . | . . . Power Chain Reactions . | . . . Alert | -11 -10 -9 ------- Run | Yrd Mat Mat Maximum Alert Level . | . . . Low Security (%) 100 | 100 100 100 Level 1 . | . . . Level 2 . | . . . Level 3 . | . . . Level 4 . | . . . Level 5 . | . . . High Security . | . . . Max Security . | . . . Peak Influence 113 | . 60 113 Initial . | . . . Average 37 | . 20 54 Influence Increases 303 | . 80 223 Destroy 0b10 Robot/C 140 | . 60 80 Destroy 0b10 Robot/NC 15 | . 10 5 Destroy Leader 30 | . 10 20 Successful Hack 13 | . . 13 Partial Spotted 15 | . . 15 Lose Combat Pursuer 90 | . . 90 Influence Decreases 220 | . 80 140 Time Decay 220 | . 80 140 Squads Dispatched 3 | . . 3 Investigation 2 | . . 2 Extermination . | . . . Reinforcement 1 | . . 1 Assault . | . . . Garrison . | . . . Intercept . | . . . Searches Triggered . | . . . Construction Impeded . | . . . Haulers Reinforced . | . . . Active Scanning Responses . | . . . Cargo Convoy Interrupts . | . . . Stealth | -11 -10 -9 --------- Run | Yrd Mat Mat Distress Signals . | . . . Communications Jammed . | . . . Distress Signals . | . . . Times Spotted 20 | . 5 15 Peak Tracking Total 5 | . 3 5 Tactical Retreats 3 | . . 3 Traps | -11 -10 -9 ------- Run | Yrd Mat Mat Traps Triggered 3 | . 2 1 Indirectly . | . . . Trap Hack Attempts . | . . . Triggered . | . . . Disarmed . | . . . Reprogrammed . | . . . Reused . | . . . Traps Extracted . | . . . Installed . | . . . Triggered . | . . . Machines | -11 -10 -9 ---------- Run | Yrd Mat Mat Machines Disabled . | . . . Max in Single Turn . | . . . Machines Repaired . | . . . Machines Dismantled . | . . . Machines Sabotaged . | . . . Overloaded Fab Kills . | . . . Hacking | -11 -10 -9 --------- Run | Yrd Mat Mat Machines Accessed 7 | . 4 3 Terminals 7 | . 4 3 Fabricators . | . . . Repair Stations . | . . . Recycling Units . | . . . Scanalyzers . | . . . Garrison Access . | . . . Total Hacks 16 | . 7 9 Successful 11 | . 4 7 Failed 5 | . 3 2 Catastrophic 1 | . 1 . Database Lockouts . | . . . Manual . | . . . Terminals 16 | . 7 9 Fabricators . | . . . Repair Stations . | . . . Recycling Units . | . . . Scanalyzers . | . . . Garrison Access . | . . . Terminal Hacks 11 | . 4 7 Record 4 | . 1 3 Branch Access Points 1 | . . 1 Repair Station Index 1 | . . 1 Locate Traps 1 | . 1 . Maintenance Status 1 | . 1 . Surveillance Status 1 | . . 1 Recall Reinforcements 1 | . . 1 Hauler Manifests 1 | . 1 . Fabricator Hacks . | . . . Repair Station Hacks . | . . . Recycling Unit Hacks . | . . . Scanalyzer . | . . . Garrison Access Hacks . | . . . Unauthorized Hacks . | . . . Terminals . | . . . Fabricators . | . . . Repair Stations . | . . . Recycling Units . | . . . Scanalyzers . | . . . Garrison Access . | . . . Data Cores Recovered . | . . . Used . | . . . Hacking Detections 4 | . 3 1 Full Trace Events 2 | . 1 1 Feedback Events . | . . . Feedback Blocked . | . . . Robot Schematics Acquired . | . . . Robots Built . | . . . Authchips . | . . . Time . | . . . Total Robot Build Rating . | . . . Part Schematics Acquired . | . . . Parts Built . | . . . Authchips . | . . . Time . | . . . Total Part Build Rating . | . . . Part Studies Acquired . | . . . Parts Repaired . | . . . Time . | . . . Parts Recycled . | . . . Recycled Matter . | . . . Retrieved Matter . | . . . Retrieved Components . | . . . Parts Scanalyzed . | . . . Part Schematics Acquired . | . . . Parts Damaged . | . . . Bothacking | -11 -10 -9 ------------ Run | Yrd Mat Mat Used RIF Installer . | . . . Robots Hacked . | . . . Non-combat . | . . . Combat . | . . . Robot Hacks Applied . | . . . Relay Couplers Released . | . . . Fabnet Peak Effective % . | . . . Robots Rewired . | . . . Allies Hacked . | . . . Hacks Repelled . | . . . Allies | -11 -10 -9 -------- Run | Yrd Mat Mat Total Allies . | . . . Largest Group . | . . . Highest-Rated Group . | . . . Highest-Rated Ally . | . . . Total Orders . | . . . Ally Attacks . | . . . Total Damage . | . . . Kills . | . . . Allies Corrupted . | . . . Allies Melted . | . . . Intel | -11 -10 -9 ------- Run | Yrd Mat Mat Active Infowar (turns) . | . . . Robot Analysis Total . | . . . Derelict Logs Recovered . | . . . Drone Launches . | . . . Drone Recoveries . | . . . Exploration | -11 -10 -9 ------------- Run | Yrd Mat Mat Turns Passed 580 | 37 233 310 Spaces Moved 575 | 29 222 324 Core 14 | 14 . . Treads . | . . . Legs . | . . . Wheels 561 | 15 222 324 Hover . | . . . Flight . | . . . Fastest Speed 50 | 50 80 80 Average Speed 80 | 84 80 80 Slowest Speed 100 | 100 80 80 Overloaded Moves . | . . . Propulsion Burnouts . | . . . Robots Hopped . | . . . Potential Cave-ins . | . . . Cave-ins Triggered . | . . . Exploration Rate (%) 21 | 3 40 20 Regions Visited 2 Branch Regions . Pre-discovered Areas . | . . . Known Exits Taken . | . . . Unknown Exits Taken 2 | 1 1 . Scrap Searched . | . . . Spaces Dug . | . . . Terrain Destroyed . | . . . Melee . | . . . Projectile . | . . . AOE . | . . . Terrain Rammed . | . . . Walls Destroyed . | . . . Machines Disabled . | . . . Actions | -11 -10 -9 --------- Run | Yrd Mat Mat Total 653 | 41 258 354 Wait 30 | . 14 16 Move 573 | 28 221 324 Hop . | . . . Pick Up 14 | 7 6 1 Fast Attach . | . . . Attach 8 | 6 2 . Detach . | . . . Swap 3 | . 1 2 Drop 1 | . 1 . Fire 24 | . 13 11 Melee . | . . . Ram . | . . . Kick . | . . . Crush . | . . . Escape Stasis . | . . . Rewire . | . . . Trap . | . . . Miscellaneous . | . . . Route ------- -11/Scrapyard -10/Materials (discovered 2 exits: *Mat / [*Min]) -9/Materials (discovered 1 exit: *Min) History --------- Turn | Location | Event 18 | -11/Scrapyard | Discovered new exit (range 16) 38 | -11/Scrapyard | Entered Materials 144 | -10/Materials | Discovered new exit (range 16) 223 | -10/Materials | Discovered new exit (range 14) 271 | -10/Materials | Entered another Materials area 271 | -9/Materials | Evolved 2 slots: Propulsion x1, Utility x1 317 | -9/Materials | Build established: Mutant 319 | -9/Materials | Identified exit to Mines 581 | -9/Materials | Self-destructed Last Messages --------------- [Achievement: GoHome()] >>Recall(Reinforcements) Establishing remote squad link... Recalled reinforcement squad ZANL0E7MK1. >>Index(Repair Stations) Found 2 repair stations. Downloaded coordinate data. 00462_ ALERT: Suspicious activity at Terminal M005. Dispatching Investigation squad. 00477_ Acquired Beam Rifle. 00488_ T-07 Excavator destroyed. 00490_ Acquired 1 matter. 00499_ Connecting with Terminal... 00502_ R-06 Scavenger collects Mining Laser. 00540_ K-01 Serf collects debris. 00564_ Triggered Alarm Trap. 00564_ An alarm sounds. 00564_ ALERT: Alarm triggered, dispatching investigation squad. 00568_ U-05 Engineer lays Concrete. Map ----- +----------------------------------------------------+ | | | | | | | | | | | | | | | | | | | | | | | | | | | | | | | | | | | | | | | | | ???????????####?????????????????????? | | ???????????# #????????????????????? | | ???????????# #????????????????????? | | ???????????# #################????? | | ???????????# # #????? | | ???????????# Y @ #????? | | ?? """?????# # ##############????? | | ?# """""???# # #?????????????????? | | ?# ###/## #?????????????????? | | ?# * + #???????####??????? | | ?# # #?????##"""##?????? | | # ??###+## #????##"|||"##????? | | ## "T"?????# # #????#"" ""#????? | | ??##??????# # #????# #????? | | ??????????## # #????? > #????? | | ???????????#! # #????? #????? | | ???????????# # #?????? #????? | | ???????????# # #?????? #?????? | | ???????????# # ######## #??????? | | ???????????##### ! #??????? | | ???????????????# !% #??????? | | ???????????????# ######## #?#####? | | ???????????????# ######?# #? # | | ???????????????# # # # """ # | | ???????????????+ # # # """ # | | ???????????????# # + + """ # | | ???????????????# # # # # | | ???????????????# # # # # | | ???????????????# # ?# #######? | | ???????????????# ######## # # | +----------------------------------------------------+ Best States ------------- Heat Dissipation 28 Energy Generation 10 Energy Capacity 250 Matter Stores 300 Matter Capacity 300 Sight Range 16 Terrain Scan Density 10 Resistance: KI 20 Resistance: TH 20 Resistance: EX 20 Resistance: EM 20 Resistance: I 20 Resistance: S 20 Resistance: P 20 Evasion (%) 44 Targeting Accuracy 6 Offensive Hacking 10 Item Schematics ----------------- None Robot Schematics ------------------ None Fabricated ------------ Nothing Repaired ---------- Nothing Studied --------- None Alien Tech Used ----------------- None Achievements -------------- GoHome() Challenges ------------ None Game ------ Seed PlexusBladeWell Manual? 0 Play Time 00:18:59 Cumulative 13.9 hours Start 2026.02.27 @ 00:08:08 End 2026.02.27 @ 00:27:50 Sessions 1 Manual Loads 0 Difficulty Adventurer Special Mode None Game No. 15 Rogue 11 Adventurer 4 Explorer 0 Win Type - Total 0 Types 0/0/0/0/0/0/0/0/0/0 Lore% 7 Gallery% 10 Achievement% 10 Wizard Run 0 Options --------- Layout 1 ASCII 0 Keyboard 0 Movement Mouse Keybinds 0 Fullscreen 1 Font 24/Smallcaps Map View 50x35 Zoom Use 0% Tactical HUD 1 Map Filters NONE Filters NONE Steam 1 RUN: 427ea4f8-dd6a-40d0-ba2e-79cd55f64411